[Event "44th Chess Olympiad Women 2022"]
[Site "Chennai"]
[Date "2022.08.07"]
[Round "9.16"]
[White "Lahav, Michal"]
[Black "Bobomurodova, Maftuna"]
[Result "1-0"]
[WhiteElo "2191"]
[BlackElo "1914"]
[Annotator "RC"]
[PlyCount "117"]
[EventDate "2022.??.??"]
[TimeControl "60"]

1. c4 {[%emt 0:00:12]} e5 {[%emt 0:00:32]} 2. Nc3 {[%emt 0:00:09]} g6 {[%emt 0:
00:00]} 3. g3 {[%emt 0:00:17]} Bg7 {[%emt 0:00:07]} 4. Bg2 {[%emt 0:00:08]} d6
{[%emt 0:00:27]} 5. e4 {[%emt 0:00:19]} Nc6 {[%emt 0:02:12]} 6. Nge2 {[%emt 0:
00:00]} f5 {[%emt 0:03:26]} 7. O-O {[%emt 0:00:25]} Nf6 {[%emt 0:04:04]} 8. d3
{[%emt 0:00:14]} O-O {[%emt 0:01:42]} 9. exf5 {[%emt 0:00:13]} Bxf5 {[%emt 0:
00:00]} 10. h3 {[%emt 0:00:16]} Qd7 {[%emt 0:11:45]} 11. Kh2 {[%emt 0:00:14]}
Rae8 {[%emt 0:00:50]} 12. Be3 {[%emt 0:02:12]} Nb4 {[%emt 0:17:01]} 13. Ne4 {
[%emt 0:08:44]} c5 {[%emt 0:02:34]} 14. N2c3 {[%emt 0:08:01]} a6 {[%emt 0:00:
00]} 15. a3 {[%emt 0:07:04]} Nc6 {[%emt 0:00:09]} 16. Qa4 {[%emt 0:00:21]} Rd8
{[%emt 0:08:30]} 17. b4 {[%emt 0:06:18]} cxb4 {[%emt 0:05:54]} 18. axb4 {
[%emt 0:04:10]} Nd4 {[%emt 0:02:16]} 19. Nxf6+ {[%emt 0:07:15]} Bxf6 {[%emt 0:
00:00]} 20. Qxd7 {[%emt 0:01:33]} Rxd7 {[%emt 0:00:24]} 21. Bxd4 {[%emt 0:00:
00]} exd4 {[%emt 0:00:34]} 22. Bd5+ {[%emt 0:01:33]} Kg7 {[%emt 0:01:48]} 23.
Ne4 {[%emt 0:00:04]} Bd8 {[%emt 0:03:33]} 24. Ra3 {[%emt 0:03:24]} h5 {[%emt 0:
00:00]} 25. Nd2 {[%emt 0:07:26]} Re8 {[%emt 0:03:48]} 26. Kg2 {[%emt 0:01:28]}
Re2 {[%emt 0:01:49]} 27. Nf3 {[%emt 0:06:03]} Bf6 {[%emt 0:02:25]} 28. Rb1 {
[%emt 0:00:00]} Rc2 {[%emt 0:04:00]} 29. Ne1 {[%emt 0:13:42]} Re2 {[%emt 0:00:
00]} 30. Bf3 {[%emt 0:07:26]} Re8 {[%emt 0:02:59]} 31. Nc2 {[%emt 0:03:40]} Rc7
{[%emt 0:02:34]} 32. g4 {[%emt 0:05:33]} hxg4 {[%emt 0:00:31]} 33. hxg4 {
[%emt 0:00:01]} Bd7 {[%emt 0:01:07]} 34. Na1 {[%emt 0:02:20]} Re5 {[%emt 0:00:
00]} 35. Ra5 {[%emt 0:02:13]} b5 {[%emt 0:02:12]} 36. Rxa6 {[%emt 0:01:08]}
bxc4 {[%emt 0:00:02]} 37. dxc4 {[%emt 0:00:02]} Rxc4 {[%emt 0:00:57]} 38. Rxd6
{[%emt 0:00:15]} Bb5 {[%emt 0:00:08]} 39. Nb3 {[%emt 0:03:31]} Rxb4 {[%emt 0:
00:00]} 40. Rxd4 {[%emt 0:00:02]} Rxd4 {[%emt 0:00:23]} 41. Nxd4 {[%emt 0:00:
00]} Bd3 {[%emt 0:30:45]} 42. Rb7+ {[%emt 0:00:00]} Re7 {[%emt 0:00:00]} 43.
Ne6+ {[%emt 0:00:00]} Kh7 {[%emt 0:00:00]} 44. Rb6 {[%emt 0:00:00]} Bg7 {
[%emt 0:00:00]} 45. Nf4 {[%emt 0:00:00]} Bc2 {[%emt 0:00:00]} 46. Rc6 {[%emt 0:
00:00]} Bb1 {[%emt 0:00:00]} 47. Rc1 {[%emt 0:00:00]} Ba2 {[%emt 0:00:00]} 48.
Rh1+ {[%emt 0:00:00]} Kg8 {[%emt 0:00:00]} 49. Nxg6 {[%emt 0:00:00]} Rc7 {
[%emt 0:00:00]} 50. Rd1 {[%emt 0:00:00]} Rc5 {[%emt 0:00:00]} 51. Rd2 {[%emt 0:
00:00]} Be6 {[%emt 0:00:00]} 52. Nf4 {[%emt 0:00:00]} Bc8 {[%emt 0:00:02]} 53.
Ra2 {[%emt 0:00:00]} Bf6 {[%emt 0:01:34]} 54. Ra7 {[%emt 0:00:00]} Rc2 {
[%emt 0:01:27]} 55. Bd5+ {[%emt 0:00:00]} Kf8 {[%emt 0:00:08]} 56. Rf7+ {
[%emt 0:00:00]} Ke8 {[%emt 0:00:04]} 57. Rxf6 {[%emt 0:00:00]} Bxg4 {[%emt 0:
00:00]} 58. Ra6 {[%emt 0:00:00]} Ke7 {[%emt 0:00:09]} 59. Kg3 {[%emt 0:00:00]}
1-0

[Event "44th Chess Olympiad Women 2022"]
[Site "Chennai"]
[Date "2022.08.07"]
[Round "9.16"]
[White "Omonova, Umida"]
[Black "Belenkaya, Dina"]
[Result "1/2-1/2"]
[WhiteElo "2195"]
[BlackElo "2256"]
[Annotator "RC"]
[PlyCount "65"]
[EventDate "2022.??.??"]
[TimeControl "60"]

1. e4 {[%emt 0:00:04]} d5 {[%emt 0:00:11]} 2. exd5 {[%emt 0:00:10]} Qxd5 {
[%emt 0:00:04]} 3. Nc3 {[%emt 0:00:08]} Qd8 {[%emt 0:00:07]} 4. d4 {[%emt 0:00:
00]} Nf6 {[%emt 0:00:29]} 5. Nf3 {[%emt 0:00:39]} c6 {[%emt 0:01:24]} 6. Be2 {
[%emt 0:01:52]} Bf5 {[%emt 0:01:16]} 7. O-O {[%emt 0:01:57]} e6 {[%emt 0:03:07]
} 8. Re1 {[%emt 0:01:22]} Be7 {[%emt 0:04:39]} 9. Bf4 {[%emt 0:03:19]} Nbd7 {
[%emt 0:00:48]} 10. h3 {[%emt 0:01:58]} h6 {[%emt 0:05:38]} 11. Ne5 {[%emt 0:
00:00]} Nxe5 {[%emt 0:01:19]} 12. Bxe5 {[%emt 0:04:11]} Bd6 {[%emt 0:08:59]}
13. Bd3 {[%emt 0:05:20]} Bxd3 {[%emt 0:07:22]} 14. Qxd3 {[%emt 0:00:34]} Bxe5 {
[%emt 0:01:08]} 15. Rxe5 {[%emt 0:03:21]} Qb6 {[%emt 0:10:30]} 16. Na4 {
[%emt 0:03:02]} Qc7 {[%emt 0:01:05]} 17. Qg3 {[%emt 0:00:25]} O-O {[%emt 0:00:
00]} 18. Nc5 {[%emt 0:02:01]} b6 {[%emt 0:05:05]} 19. Nb3 {[%emt 0:01:20]} Rfd8
{[%emt 0:01:03]} 20. c3 {[%emt 0:00:50]} Rd5 {[%emt 0:03:57]} 21. Rae1 {
[%emt 0:01:22]} Rc8 {[%emt 0:08:17]} 22. f4 {[%emt 0:11:26]} a5 {[%emt 0:08:52]
} 23. Qf2 {[%emt 0:04:47]} a4 {[%emt 0:03:56]} 24. Nd2 {[%emt 0:00:11]} c5 {
[%emt 0:01:29]} 25. Nf3 {[%emt 0:03:22]} cxd4 {[%emt 0:04:55]} 26. Nxd4 {
[%emt 0:00:07]} Qc5 {[%emt 0:01:15]} 27. a3 {[%emt 0:01:05]} Rcd8 {[%emt 0:00:
00]} 28. Qg3 {[%emt 0:03:42]} R8d6 {[%emt 0:01:29]} 29. Kh2 {[%emt 0:01:16]}
Nd7 {[%emt 0:00:07]} 30. R5e4 {[%emt 0:05:10]} Nf6 {[%emt 0:00:13]} 31. Re5 {
[%emt 0:00:55]} Nd7 {[%emt 0:00:04]} 32. R5e4 {[%emt 0:00:05]} Nf6 {[%emt 0:00:
00]} 33. Re5 {[%emt 0:00:07]} 1/2-1/2

[Event "44th Chess Olympiad Women 2022"]
[Site "Chennai"]
[Date "2022.08.07"]
[Round "9.17"]
[White "De Rycke, Tyani"]
[Black "Bach, Ngoc Thuy Duong"]
[Result "1-0"]
[WhiteElo "1994"]
[BlackElo "2192"]
[Annotator "RC"]
[PlyCount "153"]
[EventDate "2022.??.??"]
[TimeControl "60"]

1. e4 {[%emt 0:00:03]} c5 {[%emt 0:00:21]} 2. Nc3 {[%emt 0:00:06]} Nc6 {
[%emt 0:00:08]} 3. g3 {[%emt 0:00:05]} g6 {[%emt 0:00:14]} 4. Bg2 {[%emt 0:00:
00]} Bg7 {[%emt 0:00:08]} 5. d3 {[%emt 0:00:06]} d6 {[%emt 0:00:26]} 6. Be3 {
[%emt 0:00:09]} Rb8 {[%emt 0:01:20]} 7. Qd2 {[%emt 0:00:12]} b5 {[%emt 0:00:16]
} 8. Nge2 {[%emt 0:01:27]} b4 {[%emt 0:02:37]} 9. Nd1 {[%emt 0:00:09]} h5 {
[%emt 0:02:14]} 10. h3 {[%emt 0:00:17]} Nf6 {[%emt 0:00:42]} 11. f4 {[%emt 0:
00:00]} Bd7 {[%emt 0:08:21]} 12. O-O {[%emt 0:01:54]} Qc8 {[%emt 0:02:06]} 13.
Kh2 {[%emt 0:00:40]} a5 {[%emt 0:02:32]} 14. c3 {[%emt 0:03:00]} a4 {[%emt 0:
00:00]} 15. Rc1 {[%emt 0:07:21]} a3 {[%emt 0:08:35]} 16. d4 {[%emt 0:06:31]}
axb2 {[%emt 0:06:13]} 17. Nxb2 {[%emt 0:00:46]} bxc3 {[%emt 0:10:00]} 18. Rxc3
{[%emt 0:00:46]} Qa6 {[%emt 0:00:33]} 19. Nc4 {[%emt 0:07:43]} h4 {[%emt 0:00:
00]} 20. g4 {[%emt 0:24:43]} Bxg4 {[%emt 0:18:18]} 21. e5 {[%emt 0:00:00]} Bxe2
{[%emt 0:00:31]} 22. Qxe2 {[%emt 0:00:00]} O-O {[%emt 0:01:27]} 23. exf6 {
[%emt 0:00:00]} Bxf6 {[%emt 0:00:59]} 24. Ra3 {[%emt 0:00:00]} Qb5 {[%emt 0:00:
00]} 25. dxc5 {[%emt 0:00:00]} dxc5 {[%emt 0:01:16]} 26. Rb3 {[%emt 0:02:31]}
Qa6 {[%emt 0:00:30]} 27. Ra3 {[%emt 0:07:41]} Qb5 {[%emt 0:00:21]} 28. Qc2 {
[%emt 0:01:57]} Nd4 {[%emt 0:05:53]} 29. Qa4 {[%emt 0:03:11]} Qxa4 {[%emt 0:00:
00]} 30. Rxa4 {[%emt 0:00:06]} Rb4 {[%emt 0:00:06]} 31. Rxb4 {[%emt 0:00:31]}
cxb4 {[%emt 0:00:06]} 32. Ne5 {[%emt 0:01:22]} Nf5 {[%emt 0:00:59]} 33. Bd2 {
[%emt 0:03:09]} Rd8 {[%emt 0:03:06]} 34. Bxb4 {[%emt 0:01:04]} Rd4 {[%emt 0:00:
00]} 35. Nc6 {[%emt 0:01:09]} Rc4 {[%emt 0:00:48]} 36. Rf2 {[%emt 0:02:16]} e6
{[%emt 0:02:00]} 37. a3 {[%emt 0:02:17]} Kg7 {[%emt 0:02:15]} 38. Na5 {[%emt 0:
00:00]} Rc1 {[%emt 0:01:10]} 39. Nb3 {[%emt 0:00:24]} Rc4 {[%emt 0:01:00]} 40.
Nd2 {[%emt 0:01:37]} Rc7 {[%emt 0:02:12]} 41. Nf3 {[%emt 0:30:52]} Rc4 {
[%emt 0:30:22]} 42. Nd2 {[%emt 0:01:30]} Rc7 {[%emt 0:00:21]} 43. Ba5 {[%emt 0:
00:00]} Rc5 {[%emt 0:00:20]} 44. Nb3 {[%emt 0:05:03]} Rc8 {[%emt 0:01:08]} 45.
Bb4 {[%emt 0:01:59]} Rc4 {[%emt 0:02:06]} 46. Bf1 {[%emt 0:01:15]} Rc7 {
[%emt 0:01:15]} 47. Bd3 {[%emt 0:01:47]} Ng3 {[%emt 0:00:24]} 48. Rc2 {[%emt 0:
00:00]} Rd7 {[%emt 0:00:44]} 49. Nc5 {[%emt 0:00:23]} Rd4 {[%emt 0:00:37]} 50.
Rc4 {[%emt 0:00:23]} Nh5 {[%emt 0:00:00]} 51. Rxd4 {[%emt 0:00:00]} Bxd4 {
[%emt 0:00:00]} 52. a4 {[%emt 0:00:00]} Nxf4 {[%emt 0:00:00]} 53. a5 {[%emt 0:
00:00]} Be5 {[%emt 0:00:00]} 54. Kh1 {[%emt 0:00:00]} Nxh3 {[%emt 0:00:00]} 55.
a6 {[%emt 0:00:00]} Nf2+ {[%emt 0:00:00]} 56. Kg2 {[%emt 0:00:00]} Bd4 {
[%emt 0:00:00]} 57. Bc3 {[%emt 0:00:00]} Bxc3 {[%emt 0:00:00]} 58. a7 {[%emt 0:
00:00]} Bd4 {[%emt 0:00:00]} 59. a8=Q {[%emt 0:00:00]} Bxc5 {[%emt 0:00:00]}
60. Qa1+ {[%emt 0:00:00]} f6 {[%emt 0:00:00]} 61. Qc3 {[%emt 0:00:00]} Nxd3 {
[%emt 0:00:00]} 62. Qxd3 {[%emt 0:00:00]} Be7 {[%emt 0:00:00]} 63. Qe4 {
[%emt 0:00:00]} f5 {[%emt 0:00:00]} 64. Qxe6 {[%emt 0:00:00]} Bg5 {[%emt 0:00:
00]} 65. Kh3 {[%emt 0:00:43]} Bf6 {[%emt 0:00:22]} 66. Qd7+ {[%emt 0:01:02]}
Kh6 {[%emt 0:00:23]} 67. Qf7 {[%emt 0:00:17]} Be5 {[%emt 0:01:23]} 68. Kxh4 {
[%emt 0:00:32]} Bf4 {[%emt 0:02:43]} 69. Qg8 {[%emt 0:01:35]} Bg5+ {[%emt 0:00:
00]} 70. Kg3 {[%emt 0:00:39]} Bf6 {[%emt 0:00:44]} 71. Qe6 {[%emt 0:01:13]} Kg5
{[%emt 0:01:10]} 72. Qd6 {[%emt 0:01:30]} Bc3 {[%emt 0:01:10]} 73. Qd8+ {
[%emt 0:02:11]} Kh6 {[%emt 0:00:27]} 74. Qh4+ {[%emt 0:00:54]} Kg7 {[%emt 0:00:
00]} 75. Qe7+ {[%emt 0:00:06]} Kg8 {[%emt 0:00:12]} 76. Kh4 {[%emt 0:00:42]}
Bg7 {[%emt 0:01:35]} 77. Kg5 {[%emt 0:00:14]} 1-0

[Event "44th Chess Olympiad Women 2022"]
[Site "Chennai"]
[Date "2022.08.07"]
[Round "9.17"]
[White "Goossens, Hanne"]
[Black "Vo, Thi Kim Phung"]
[Result "0-1"]
[WhiteElo "2159"]
[BlackElo "2333"]
[Annotator "RC"]
[PlyCount "118"]
[EventDate "2022.??.??"]
[TimeControl "60"]

1. e4 {[%emt 0:00:04]} e6 {[%emt 0:00:10]} 2. d4 {[%emt 0:00:11]} d5 {[%emt 0:
00:00]} 3. Nd2 {[%emt 0:00:20]} c5 {[%emt 0:00:09]} 4. Ngf3 {[%emt 0:00:15]}
cxd4 {[%emt 0:02:11]} 5. Nxd4 {[%emt 0:01:52]} e5 {[%emt 0:08:37]} 6. N4f3 {
[%emt 0:04:27]} dxe4 {[%emt 0:01:40]} 7. Nxe5 {[%emt 0:07:46]} Qd5 {[%emt 0:00:
00]} 8. f4 {[%emt 0:09:49]} exf3 {[%emt 0:02:28]} 9. Ndxf3 {[%emt 0:03:50]}
Qxd1+ {[%emt 0:01:53]} 10. Kxd1 {[%emt 0:00:05]} f6 {[%emt 0:00:49]} 11. Bb5+ {
[%emt 0:02:08]} Nd7 {[%emt 0:00:07]} 12. Nd3 {[%emt 0:05:09]} a6 {[%emt 0:00:
00]} 13. Re1+ {[%emt 0:03:36]} Ne7 {[%emt 0:00:11]} 14. Bc4 {[%emt 0:02:27]}
Nb6 {[%emt 0:00:12]} 15. Bb3 {[%emt 0:01:55]} Bg4 {[%emt 0:00:33]} 16. Be3 {
[%emt 0:03:56]} Nbd5 {[%emt 0:00:26]} 17. Bc5 {[%emt 0:01:58]} O-O-O {[%emt 0:
00:00]} 18. Ke2 {[%emt 0:04:25]} Ng6 {[%emt 0:03:37]} 19. Bxf8 {[%emt 0:03:15]}
Rhxf8 {[%emt 0:00:58]} 20. Kf2 {[%emt 0:01:36]} Nc7 {[%emt 0:00:23]} 21. Re3 {
[%emt 0:09:51]} Nd5 {[%emt 0:00:51]} 22. Ree1 {[%emt 0:00:18]} Rd6 {[%emt 0:00:
00]} 23. Nc5 {[%emt 0:03:36]} Bxf3 {[%emt 0:01:31]} 24. gxf3 {[%emt 0:06:19]}
Ndf4 {[%emt 0:00:10]} 25. Rad1 {[%emt 0:01:47]} Rxd1 {[%emt 0:04:56]} 26. Rxd1
{[%emt 0:00:06]} Re8 {[%emt 0:00:33]} 27. Ne4 {[%emt 0:03:34]} Kc7 {[%emt 0:00:
00]} 28. Nc3 {[%emt 0:04:05]} Kc8 {[%emt 0:08:24]} 29. Ne4 {[%emt 0:00:49]} Re7
{[%emt 0:00:25]} 30. Rd2 {[%emt 0:03:10]} Re5 {[%emt 0:01:24]} 31. Nd6+ {
[%emt 0:06:10]} Kc7 {[%emt 0:00:11]} 32. c3 {[%emt 0:04:56]} Nh3+ {[%emt 0:00:
00]} 33. Kg3 {[%emt 0:01:04]} Ngf4 {[%emt 0:00:07]} 34. Ne4 {[%emt 0:00:55]} h5
{[%emt 0:00:35]} 35. Bf7 {[%emt 0:00:51]} f5 {[%emt 0:05:43]} 36. Nf2 {[%emt 0:
00:00]} g5 {[%emt 0:00:46]} 37. Nxh3 {[%emt 0:00:33]} h4+ {[%emt 0:00:22]} 38.
Kf2 {[%emt 0:00:06]} Nxh3+ {[%emt 0:00:03]} 39. Kg2 {[%emt 0:00:48]} g4 {
[%emt 0:01:05]} 40. fxg4 {[%emt 0:00:58]} fxg4 {[%emt 0:00:01]} 41. Bc4 {
[%emt 0:03:26]} Re1 {[%emt 0:05:14]} 42. Bf1 {[%emt 0:00:52]} Rb1 {[%emt 0:00:
00]} 43. b3 {[%emt 0:06:26]} Nf4+ {[%emt 0:00:47]} 44. Kg1 {[%emt 0:01:07]} g3
{[%emt 0:00:10]} 45. hxg3 {[%emt 0:09:21]} hxg3 {[%emt 0:00:13]} 46. Rc2 {
[%emt 0:01:32]} a5 {[%emt 0:03:31]} 47. Rd2 {[%emt 0:01:57]} Ra1 {[%emt 0:00:
00]} 48. a4 {[%emt 0:02:08]} Rb1 {[%emt 0:00:37]} 49. b4 {[%emt 0:01:50]} g2 {
[%emt 0:01:19]} 50. Rxg2 {[%emt 0:00:27]} Nxg2 {[%emt 0:00:06]} 51. Kxg2 {
[%emt 0:00:04]} axb4 {[%emt 0:00:07]} 52. cxb4 {[%emt 0:00:08]} Rxb4 {[%emt 0:
00:00]} 53. Bb5 {[%emt 0:00:11]} Rxb5 {[%emt 0:00:38]} 54. axb5 {[%emt 0:00:10]
} Kb6 {[%emt 0:00:03]} 55. Kf2 {[%emt 0:00:10]} Kxb5 {[%emt 0:00:05]} 56. Ke3 {
[%emt 0:00:14]} Kc4 {[%emt 0:00:11]} 57. Kd2 {[%emt 0:00:06]} Kb3 {[%emt 0:00:
00]} 58. Kc1 {[%emt 0:00:10]} b5 {[%emt 0:01:08]} 59. Kb1 {[%emt 0:00:11]} b4 {
[%emt 0:00:11]} 0-1

[Event "44th Chess Olympiad Women 2022"]
[Site "Chennai"]
[Date "2022.08.07"]
[Round "9.17"]
[White "Hoang, Thi Bao Tram"]
[Black "Vanduyfhuys, Daria"]
[Result "0-1"]
[WhiteElo "2288"]
[BlackElo "2094"]
[Annotator "RC"]
[PlyCount "106"]
[EventDate "2022.??.??"]
[TimeControl "60"]

1. Nf3 {[%emt 0:00:34]} d5 {[%emt 0:00:11]} 2. g3 {[%emt 0:00:41]} Nf6 {
[%emt 0:00:12]} 3. Bg2 {[%emt 0:01:02]} e6 {[%emt 0:00:27]} 4. d4 {[%emt 0:00:
00]} c5 {[%emt 0:06:15]} 5. O-O {[%emt 0:00:48]} Nc6 {[%emt 0:00:23]} 6. c4 {
[%emt 0:02:43]} cxd4 {[%emt 0:04:15]} 7. cxd5 {[%emt 0:03:28]} Nxd5 {[%emt 0:
00:00]} 8. Nxd4 {[%emt 0:00:30]} Be7 {[%emt 0:03:08]} 9. Nxc6 {[%emt 0:04:25]}
bxc6 {[%emt 0:00:07]} 10. Qa4 {[%emt 0:02:01]} Bd7 {[%emt 0:02:35]} 11. Nd2 {
[%emt 0:07:19]} O-O {[%emt 0:01:33]} 12. a3 {[%emt 0:02:19]} c5 {[%emt 0:04:13]
} 13. Qc2 {[%emt 0:00:22]} Rb8 {[%emt 0:03:32]} 14. Nc4 {[%emt 0:04:00]} Bc6 {
[%emt 0:05:09]} 15. e4 {[%emt 0:03:59]} Nb6 {[%emt 0:01:02]} 16. Rd1 {[%emt 0:
00:00]} Qc8 {[%emt 0:02:45]} 17. Bf4 {[%emt 0:01:16]} Ra8 {[%emt 0:05:22]} 18.
Nd6 {[%emt 0:02:09]} Bxd6 {[%emt 0:02:55]} 19. Bxd6 {[%emt 0:00:30]} Rd8 {
[%emt 0:00:23]} 20. Qxc5 {[%emt 0:01:33]} Qb7 {[%emt 0:01:05]} 21. Qc2 {
[%emt 0:06:15]} Rac8 {[%emt 0:01:35]} 22. Qe2 {[%emt 0:01:23]} Na4 {[%emt 0:00:
00]} 23. Rd2 {[%emt 0:09:55]} Rd7 {[%emt 0:07:44]} 24. Rad1 {[%emt 0:05:13]}
Rcd8 {[%emt 0:00:58]} 25. Bb4 {[%emt 0:03:58]} Bb5 {[%emt 0:05:50]} 26. Rxd7 {
[%emt 0:01:44]} Rxd7 {[%emt 0:00:06]} 27. Rxd7 {[%emt 0:00:18]} Qxd7 {[%emt 0:
00:00]} 28. Qc2 {[%emt 0:00:33]} Nxb2 {[%emt 0:04:32]} 29. e5 {[%emt 0:04:51]}
h6 {[%emt 0:09:09]} 30. Bd6 {[%emt 0:08:42]} Nc4 {[%emt 0:00:42]} 31. Qb3 {
[%emt 0:03:11]} a6 {[%emt 0:09:04]} 32. a4 {[%emt 0:07:41]} Nxd6 {[%emt 0:00:
00]} 33. exd6 {[%emt 0:00:08]} Bxa4 {[%emt 0:00:18]} 34. Qb8+ {[%emt 0:01:08]}
Kh7 {[%emt 0:04:51]} 35. Bb7 {[%emt 0:02:31]} Qb5 {[%emt 0:02:05]} 36. Qc7 {
[%emt 0:02:47]} Qb1+ {[%emt 0:01:12]} 37. Kg2 {[%emt 0:00:13]} Bb5 {[%emt 0:00:
00]} 38. Qxf7 {[%emt 0:01:42]} Bf1+ {[%emt 0:01:09]} 39. Kf3 {[%emt 0:00:08]}
Qd1+ {[%emt 0:01:44]} 40. Kf4 {[%emt 0:00:41]} Qxd6+ {[%emt 0:00:31]} 41. Kg4 {
[%emt 0:30:19]} Bd3 {[%emt 0:08:17]} 42. Kh3 {[%emt 0:00:00]} Qe5 {[%emt 0:00:
00]} 43. Kg2 {[%emt 0:00:00]} a5 {[%emt 0:01:45]} 44. Qd7 {[%emt 0:00:00]} Be4+
{[%emt 0:02:52]} 45. Bxe4+ {[%emt 0:00:00]} Qxe4+ {[%emt 0:00:03]} 46. f3 {
[%emt 0:00:00]} Qc2+ {[%emt 0:01:15]} 47. Kh3 {[%emt 0:00:00]} Qc4 {[%emt 0:00:
00]} 48. Qa7 {[%emt 0:00:00]} a4 {[%emt 0:00:12]} 49. Qe3 {[%emt 0:00:00]} Kg8
{[%emt 0:01:26]} 50. f4 {[%emt 0:00:00]} Qb3 {[%emt 0:02:11]} 51. Qc5 {[%emt 0:
00:00]} a3 {[%emt 0:00:59]} 52. f5 {[%emt 0:00:00]} a2 {[%emt 0:02:39]} 53.
Qc8+ {[%emt 0:00:13]} Kh7 {[%emt 0:02:05]} 0-1

[Event "44th Chess Olympiad Women 2022"]
[Site "Chennai"]
[Date "2022.08.07"]
[Round "9.17"]
[White "Nguyen, Thien Ngan"]
[Black "Barbier, Astrid"]
[Result "1-0"]
[WhiteElo "1912"]
[BlackElo "1879"]
[Annotator "NA"]
[PlyCount "89"]
[EventDate "2022.??.??"]
[TimeControl "60"]

1. e4 {[%emt 0:00:03]} c5 {[%emt 0:00:05]} 2. Nf3 {[%emt 0:00:10]} Nc6 {
[%emt 0:00:07]} 3. d4 {[%emt 0:00:12]} cxd4 {[%emt 0:00:07]} 4. Nxd4 {[%emt 0:
00:00]} Nf6 {[%emt 0:00:16]} 5. Nc3 {[%emt 0:02:21]} e5 {[%emt 0:00:13]} 6.
Ndb5 {[%emt 0:00:16]} d6 {[%emt 0:00:09]} 7. Bg5 {[%emt 0:00:14]} a6 {[%emt 0:
00:00]} 8. Na3 {[%emt 0:00:34]} b5 {[%emt 0:00:09]} 9. Nd5 {[%emt 0:06:09]} Be7
{[%emt 0:00:11]} 10. Bxf6 {[%emt 0:00:18]} Bxf6 {[%emt 0:00:08]} 11. c3 {
[%emt 0:00:21]} O-O {[%emt 0:03:55]} 12. Nc2 {[%emt 0:00:27]} Rb8 {[%emt 0:00:
00]} 13. Ncb4 {[%emt 0:04:15]} Nxb4 {[%emt 0:03:05]} 14. Nxb4 {[%emt 0:00:20]}
Bb7 {[%emt 0:02:44]} 15. Nd5 {[%emt 0:04:01]} Bg5 {[%emt 0:00:38]} 16. Be2 {
[%emt 0:10:10]} Bc6 {[%emt 0:04:40]} 17. Qd3 {[%emt 0:01:46]} Kh8 {[%emt 0:00:
00]} 18. O-O {[%emt 0:12:58]} a5 {[%emt 0:04:26]} 19. Rfd1 {[%emt 0:04:33]} Bh6
{[%emt 0:07:39]} 20. b4 {[%emt 0:03:30]} a4 {[%emt 0:12:21]} 21. a3 {[%emt 0:
00:00]} Qd7 {[%emt 0:03:22]} 22. h3 {[%emt 0:09:26]} Qb7 {[%emt 0:14:57]} 23.
Ra2 {[%emt 0:06:05]} Rfc8 {[%emt 0:04:27]} 24. Rc2 {[%emt 0:02:22]} Bg5 {
[%emt 0:05:18]} 25. Bg4 {[%emt 0:02:09]} Rf8 {[%emt 0:05:00]} 26. c4 {[%emt 0:
00:00]} g6 {[%emt 0:09:15]} 27. Be2 {[%emt 0:10:31]} f5 {[%emt 0:02:43]} 28.
cxb5 {[%emt 0:00:55]} fxe4 {[%emt 0:01:57]} 29. Qxe4 {[%emt 0:01:09]} Bxb5 {
[%emt 0:01:32]} 30. Bxb5 {[%emt 0:04:45]} Qxb5 {[%emt 0:00:29]} 31. Nc7 {
[%emt 0:00:33]} Rf4 {[%emt 0:05:07]} 32. Qxf4 {[%emt 0:00:35]} exf4 {[%emt 0:
00:00]} 33. Nxb5 {[%emt 0:00:07]} Rxb5 {[%emt 0:00:05]} 34. Rxd6 {[%emt 0:00:
00]} Kg7 {[%emt 0:01:28]} 35. Rd7+ {[%emt 0:00:33]} Kh6 {[%emt 0:00:51]} 36.
Rc5 {[%emt 0:00:08]} Rb6 {[%emt 0:00:20]} 37. Ra5 {[%emt 0:01:28]} Rc6 {
[%emt 0:00:44]} 38. Rd1 {[%emt 0:00:14]} Rc2 {[%emt 0:00:39]} 39. Rxa4 {
[%emt 0:00:11]} Bh4 {[%emt 0:00:22]} 40. Rf1 {[%emt 0:01:00]} g5 {[%emt 0:00:
00]} 41. b5 {[%emt 0:30:31]} Rb2 {[%emt 0:03:40]} 42. Rb4 {[%emt 0:00:00]} Rd2
{[%emt 0:01:15]} 43. b6 {[%emt 0:00:00]} Rd8 {[%emt 0:00:06]} 44. b7 {[%emt 0:
00:00]} Rb8 {[%emt 0:00:03]} 45. Rc1 {[%emt 0:00:00]} 1-0

[Event "44th Chess Olympiad Women 2022"]
[Site "Chennai"]
[Date "2022.08.07"]
[Round "9.18"]
[White "Azhar, Puteri Munajjah Az-"]
[Black "Zimina, Olga"]
[Result "0-1"]
[WhiteElo "2018"]
[BlackElo "2340"]
[Annotator "RC"]
[PlyCount "116"]
[EventDate "2022.??.??"]
[TimeControl "60"]

1. d4 {[%emt 0:00:04]} d5 {[%emt 0:00:15]} 2. c4 {[%emt 0:00:13]} c6 {[%emt 0:
00:00]} 3. e3 {[%emt 0:00:14]} Bf5 {[%emt 0:00:44]} 4. Nf3 {[%emt 0:00:59]} e6
{[%emt 0:00:08]} 5. Be2 {[%emt 0:02:47]} h6 {[%emt 0:00:06]} 6. O-O {[%emt 0:
00:00]} Nf6 {[%emt 0:00:04]} 7. Nc3 {[%emt 0:03:13]} Nbd7 {[%emt 0:00:19]} 8.
Re1 {[%emt 0:05:31]} Bd6 {[%emt 0:02:04]} 9. h3 {[%emt 0:12:50]} O-O {[%emt 0:
00:00]} 10. Qb3 {[%emt 0:04:35]} Rb8 {[%emt 0:03:22]} 11. c5 {[%emt 0:10:34]}
Bc7 {[%emt 0:01:05]} 12. Qa4 {[%emt 0:00:12]} a6 {[%emt 0:01:36]} 13. b4 {
[%emt 0:00:40]} e5 {[%emt 0:00:41]} 14. dxe5 {[%emt 0:01:56]} Nxe5 {[%emt 0:00:
00]} 15. Bb2 {[%emt 0:15:37]} Qe7 {[%emt 0:06:05]} 16. Nd4 {[%emt 0:04:04]} Bd3
{[%emt 0:02:01]} 17. Rad1 {[%emt 0:02:32]} Nc4 {[%emt 0:02:57]} 18. Ba1 {
[%emt 0:00:39]} Bxe2 {[%emt 0:04:12]} 19. Rxe2 {[%emt 0:01:14]} Ne4 {[%emt 0:
00:00]} 20. Nxe4 {[%emt 0:13:36]} Qxe4 {[%emt 0:00:17]} 21. Qc2 {[%emt 0:00:23]
} Rbe8 {[%emt 0:11:52]} 22. Qxe4 {[%emt 0:01:48]} Rxe4 {[%emt 0:00:06]} 23. Nf5
{[%emt 0:01:24]} f6 {[%emt 0:03:22]} 24. a4 {[%emt 0:04:54]} Kf7 {[%emt 0:00:
00]} 25. f3 {[%emt 0:05:40]} Re6 {[%emt 0:04:26]} 26. Kf2 {[%emt 0:00:28]} Rd8
{[%emt 0:10:38]} 27. Nd4 {[%emt 0:02:59]} Ree8 {[%emt 0:02:20]} 28. Nf5 {
[%emt 0:00:17]} h5 {[%emt 0:00:36]} 29. h4 {[%emt 0:01:10]} Be5 {[%emt 0:05:55]
} 30. Nd4 {[%emt 0:00:35]} g5 {[%emt 0:00:56]} 31. hxg5 {[%emt 0:01:42]} fxg5 {
[%emt 0:00:12]} 32. g3 {[%emt 0:01:27]} Bf6 {[%emt 0:03:37]} 33. Rh1 {[%emt 0:
00:00]} Rh8 {[%emt 0:01:16]} 34. f4 {[%emt 0:00:51]} Rde8 {[%emt 0:01:17]} 35.
Nf3 {[%emt 0:00:50]} gxf4 {[%emt 0:03:05]} 36. gxf4 {[%emt 0:00:36]} Rh6 {
[%emt 0:02:35]} 37. Bxf6 {[%emt 0:00:27]} Kxf6 {[%emt 0:00:07]} 38. Nh4 {
[%emt 0:00:20]} Re4 {[%emt 0:00:50]} 39. Kf3 {[%emt 0:00:37]} Ke6 {[%emt 0:00:
00]} 40. Rg1 {[%emt 0:00:14]} Ne5+ {[%emt 0:03:52]} 41. Kg2 {[%emt 0:30:55]}
Rxb4 {[%emt 0:23:17]} 42. e4 {[%emt 0:00:00]} Nd3 {[%emt 0:00:27]} 43. exd5+ {
[%emt 0:00:00]} Kxd5 {[%emt 0:00:09]} 44. Rd1 {[%emt 0:00:00]} Rd4 {[%emt 0:00:
00]} 45. Kg3 {[%emt 0:00:00]} Kxc5 {[%emt 0:02:54]} 46. Red2 {[%emt 0:00:00]}
Rhd6 {[%emt 0:01:39]} 47. Nf3 {[%emt 0:00:00]} R4d5 {[%emt 0:00:52]} 48. f5 {
[%emt 0:00:00]} Kc4 {[%emt 0:05:09]} 49. Nh4 {[%emt 0:00:00]} Kc3 {[%emt 0:00:
00]} 50. Re2 {[%emt 0:00:00]} Rd4 {[%emt 0:00:22]} 51. Ng6 {[%emt 0:00:00]}
Rxa4 {[%emt 0:01:48]} 52. Ne5 {[%emt 0:00:00]} h4+ {[%emt 0:00:07]} 53. Kh2 {
[%emt 0:00:00]} c5 {[%emt 0:01:04]} 54. f6 {[%emt 0:00:00]} Rf4 {[%emt 0:00:25]
} 55. f7 {[%emt 0:04:29]} b5 {[%emt 0:01:18]} 56. Rg2 {[%emt 0:00:41]} c4 {
[%emt 0:00:26]} 57. Rg8 {[%emt 0:00:19]} Rdf6 {[%emt 0:00:47]} 58. Nxd3 {
[%emt 0:00:16]} cxd3 {[%emt 0:00:05]} 0-1